Workbook

Sheet EWB verwalten
AB3: Jahr | AC3: Monat | AD3: Tag | AE3: Jahr | AF3: Monat | AG3: Tag
AB4: =+YEAR(#REF!) ->  | AC4: =+MONTH(#REF!) ->  | AD4: =+DAY(#REF!) ->  | AE4: =+AB4-1 ->  | AF4: =+AC4 ->  | AG4: =+AD4 -> 
E6: Einzelwertberichtigungen verwalten
F8: Abschlussjahr: | H8: 2018
F10: =+IF($H$8="","Werte aus Vorhahr","Werte von "&$H$8-1) -> Werte von 2017 | O10: =+IF($H$8="","Werte aus aktuellem Jahr","Werte von "&$H$8) -> Werte von 2018
F11: Debi- | G11: Name | H11: Anspruch | I11: Buchwert | J11: Zahlungen | K11: Zusätzliche | L11: Verzugs- | M11: EWB | N11: Saldo | O11: Kosten und | P11: Weitere Ab- | Q11: Bewertung | R11: Gründe für Abwertungen
F12: tor | H12: fällig seit | I12: =+IF($H$8="","Vorjahr",$H$8-1) -> 2017 | J12: =IF($H$8="","Vorjahr"," "&$H$8-1) -> 2017 | K12: =+IF($H$8="","Kosten","Kosten "&$H$8-1) -> Kosten 2017 | L12: =+IF($H$8="","zinsen","zinsen "&$H$8-1) -> zinsen 2017 | M12: =+IF($H$8="","""Vorjahr",+$H$8-1) -> 2017 | N12: =IF($H$8="","Vorjahr",+"Ende "&$H$8-1) -> Ende 2017 | O12: =+IF($H$8="","Zinsen","Zinsen "&$H$8) -> Zinsen 2018 | P12: =IF($H$8="","wertung",+"wertung "&$H$8) -> wertung 2018 | Q12: =+IF($H$8="","Jahr",$H$8) -> 2018
F13: 4711 | G13: Müller GmbH | H13: 2018-02-13 | I13: 35000 | J13: 5000 | K13: 0 | L13: 0 | M13: 0 | N13: =+IF(F13="","",SUM(I13,-J13,K13:L13,-M13)) -> 30000 | O13: 1000 | P13: 16000 | Q13: =IF(ISERROR(N13+O13-P13),"",N13+O13-P13) -> 15000 | R13: drohender Konkurs
F14: 4712 | G14: Meier OHG | H14: 2018-06-14 | I14: 20000 | J14: 5000 | K14: 100 | L14: 200 | M14: 0 | N14: 15300 | O14: 250 | P14: 5550 | Q14: =IF(ISERROR(N14+O14-P14),"",N14+O14-P14) -> 10000 | R14: Vergleich
F15: 4713 | G15: Schulze GmbH & KO | H15: 2018-09-25 | I15: 16500 | J15: 0 | K15: 0 | L15: 0 | M15: 6500 | N15: 10000 | O15: 0 | P15: 5000 | Q15: 5000 | R15: Mahnbescheid
F24: =+IF($H$8="","Abwertungen aus Vorjahr und Jahr","Abwertungen für "&$H$8-1&" und "&$H$8) -> Abwertungen für 2017 und 2018 | I24: =SUM(I13:I23) -> 71500 | J24: 10000 | K24: 100 | L24: 200 | M24: 6500 | N24: 55300 | O24: 1250 | P24: 26550 | Q24: 30000
F27: =+IF(H8="","Werte ausschließlich aus aktuellem Jahr","Werte ausschließlich von "&H8) -> Werte ausschließlich von 2018
F28: Debitoren- | G28: Name | H28: Anspruch | I28: Buchwert | J28: Zahlungen | K28: Zusätzliche | L28: Verzugs- | M28: EWB | N28: Saldo | O28: Gründe für Abwertungen
F29: Nummern | H29: fällig seit | I29: =+IF($H$8="","Vorjahr",$H$8) -> 2018 | J29: =IF($H$8="","Vorjahr"," "&$H$8) -> 2018 | K29: =+IF($H$8="","Kosten","Kosten "&$H$8) -> Kosten 2018 | L29: =+IF($H$8="","zinsen","zinsen "&$H$8) -> zinsen 2018 | M29: =+IF($H$8="","""Vorjahr",+$H$8) -> 2018 | N29: =IF($H$8="","Vorjahr",+"Ende "&$H$8) -> Ende 2018
F30: 123 | G30: Silbereisen Gbr. | H30: 2018-04-01 | I30: 50000 | J30: 0 | K30: 1000 | L30: 500 | M30: =23250+5000 -> 28250 | N30: =+IF(F30="","",SUM(I30,-J30,K30:L30,-M30)) -> 23250 | O30: Vergleich
F31: 124 | G31: Müller KG | H31: 2018-06-08 | I31: 40000 | J31: 0 | K31: 0 | L31: 250 | M31: 16100 | N31: 24150 | O31: Vergleich
F32: 125 | G32: Neumann GmbH | H32: 2018-09-12 | I32: 25000 | J32: 0 | K32: 0 | L32: 250 | M32: 24000 | N32: 1250 | O32: Konkurs
F41: =+IF($H$8="","Abwertungen aktuellem Jahr","Abwertungen für "&$H$8) -> Abwertungen für 2018 | I41: =SUM(I30:I40) -> 115000 | J41: 0 | K41: 1000 | L41: 1000 | M41: 68350 | N41: 48650
F43: Zusammenfassung | I43: =+IF(H8="","Vorjahr",H8-1) -> 2017 | J43: =+IF(H8="","Jahr",H8) -> 2018 | K43: Summen
F44: Buchwerte | I44: =+I24 -> 71500 | J44: =+I41 -> 115000 | K44: =+SUM(I44:J44) -> 186500
F45: Zahlungen | I45: =+J24 -> 10000 | J45: =+J41 -> 0 | K45: =+SUM(I45:J45) -> 10000
F46: Kosten und Zinsen | I46: =SUM(K24:L24) -> 300 | J46: =SUM(K41:L41)+O24 -> 3250 | K46: =+SUM(I46:J46) -> 3550
F47: Neue Forderungssumme | I47: =+I44-I45+I46 -> 61800 | J47: =+J44-J45+J46 -> 118250 | K47: =+SUM(I47:J47) -> 180050
F49: EWB | I49: =+M24 -> 6500 | J49: =+M41+P24 -> 94900 | K49: =+SUM(I49:J49) -> 101400
F51: Summe wertberichtigter Forderungen | I51: =+I47-I49 -> 55300 | J51: =+J47-J49 -> 23350 | K51: =+SUM(I51:J51) -> 78650
